[Event "Late-Titled-Tuesday-Blitz-February-20-2024"]
[Site "Chess.com"]
[Date "2024.02.20"]
[Round "11"]
[White "Fonsofan"]
[Black "Fandorine"]
[Result "0-1"]
[WhiteElo "2692"]
[BlackElo "2913"]
[TimeControl "180+1"]
[EndTime "16:06:55 PST"]
[Termination "Fandorine won on time"]

1. e4 {[%clk 0:03:00.9]} 1... c5 {[%clk 0:02:57.9]} 2. Nf3 {[%clk 0:03:00.4]}
2... d6 {[%clk 0:02:58.6]} 3. g3 {[%clk 0:02:56.9]} 3... g6 {[%clk 0:02:56.9]}
4. Bg2 {[%clk 0:02:56]} 4... Bg7 {[%clk 0:02:57.5]} 5. c3 {[%clk 0:02:54.8]}
5... Nf6 {[%clk 0:02:55.8]} 6. Qe2 {[%clk 0:02:51.5]} 6... O-O {[%clk
0:02:55.9]} 7. O-O {[%clk 0:02:51.9]} 7... Nc6 {[%clk 0:02:56]} 8. h3 {[%clk
0:02:51.6]} 8... e5 {[%clk 0:02:54.7]} 9. Na3 {[%clk 0:02:49.9]} 9... h6 {[%clk
0:02:55]} 10. d3 {[%clk 0:02:46.5]} 10... a5 {[%clk 0:02:54.6]} 11. Nb5 {[%clk
0:02:45.8]} 11... a4 {[%clk 0:02:53.8]} 12. Nd2 {[%clk 0:02:45.2]} 12... Be6
{[%clk 0:02:49.7]} 13. Nc4 {[%clk 0:02:39.5]} 13... d5 {[%clk 0:02:48.7]} 14.
exd5 {[%clk 0:02:27.8]} 14... Bxd5 {[%clk 0:02:47.8]} 15. Re1 {[%clk 0:02:19.9]}
15... Bxg2 {[%clk 0:02:37.8]} 16. Kxg2 {[%clk 0:02:20.8]} 16... Re8 {[%clk
0:02:31.1]} 17. Qf3 {[%clk 0:02:17.8]} 17... Re6 {[%clk 0:02:23.3]} 18. Be3
{[%clk 0:02:14.4]} 18... Qxd3 {[%clk 0:02:19.9]} 19. b3 {[%clk 0:02:12.3]} 19...
e4 {[%clk 0:02:13.2]} 20. Qe2 {[%clk 0:02:11.9]} 20... Qxe2 {[%clk 0:02:12.8]}
21. Rxe2 {[%clk 0:02:12.8]} 21... axb3 {[%clk 0:02:12.6]} 22. Bxc5 {[%clk
0:02:10.3]} 22... Nd5 {[%clk 0:02:09.2]} 23. Bd4 {[%clk 0:01:42.9]} 23... Ra4
{[%clk 0:02:00.6]} 24. Bxg7 {[%clk 0:01:29.1]} 24... Kxg7 {[%clk 0:01:58.4]} 25.
Nca3 {[%clk 0:01:29.6]} 25... Nxc3 {[%clk 0:01:50.1]} 26. Rb2 {[%clk 0:00:58.6]}
26... Nxb5 {[%clk 0:01:39.2]} 27. Nxb5 {[%clk 0:00:59.5]} 27... Rxa2 {[%clk
0:01:38.1]} 28. Raxa2 {[%clk 0:01:00.4]} 28... bxa2 {[%clk 0:01:37.6]} 29. Rxa2
{[%clk 0:01:01.3]} 29... e3 {[%clk 0:01:30.4]} 30. fxe3 {[%clk 0:00:58.8]} 30...
Rxe3 {[%clk 0:01:30]} 31. Rb2 {[%clk 0:00:59.7]} 31... Rd3 {[%clk 0:01:17.5]}
32. Nc7 {[%clk 0:00:47.7]} 32... Ne5 {[%clk 0:01:10.9]} 33. Rxb7 {[%clk
0:00:45.1]} 33... Rd2+ {[%clk 0:01:05.3]} 34. Kf1 {[%clk 0:00:44.1]} 34... Rd7
{[%clk 0:01:01.8]} 35. Ne8+ {[%clk 0:00:43.1]} 35... Kf8 {[%clk 0:01:00.8]} 36.
Rxd7 {[%clk 0:00:43.8]} 36... Nxd7 {[%clk 0:01:00.5]} 37. Nd6 {[%clk 0:00:44.7]}
37... Ke7 {[%clk 0:01:00.8]} 38. Nc4 {[%clk 0:00:43.7]} 38... Ke6 {[%clk
0:01:00.5]} 39. Ke2 {[%clk 0:00:43.2]} 39... Kd5 {[%clk 0:01:00.4]} 40. Ne3+
{[%clk 0:00:43.3]} 40... Ke4 {[%clk 0:01:00.9]} 41. Ng4 {[%clk 0:00:43.3]} 41...
h5 {[%clk 0:01:00.2]} 42. Nf2+ {[%clk 0:00:44.2]} 42... Kd4 {[%clk 0:01:00.1]}
43. Kf3 {[%clk 0:00:44.4]} 43... Ne5+ {[%clk 0:00:59.3]} 44. Ke2 {[%clk
0:00:38.5]} 44... f5 {[%clk 0:00:46.2]} 45. h4 {[%clk 0:00:34.5]} 45... Nd7
{[%clk 0:00:20.1]} 46. Nh3 {[%clk 0:00:31.8]} 46... Ke4 {[%clk 0:00:20.2]} 47.
Kf2 {[%clk 0:00:26.3]} 47... Ne5 {[%clk 0:00:19.8]} 48. Kg2 {[%clk 0:00:24.8]}
48... Nd3 {[%clk 0:00:18.2]} 49. Ng5+ {[%clk 0:00:18.2]} 49... Ke3 {[%clk
0:00:18.7]} 50. Ne6 {[%clk 0:00:18.7]} 50... f4 {[%clk 0:00:15.8]} 51. Ng5
{[%clk 0:00:19.2]} 51... Ne1+ {[%clk 0:00:12.3]} 52. Kf1 {[%clk 0:00:16.6]}
52... Nf3 {[%clk 0:00:11.5]} 53. Ne6 {[%clk 0:00:15.8]} 53... fxg3 {[%clk
0:00:09.8]} 54. Kg2 {[%clk 0:00:16.3]} 54... Nxh4+ {[%clk 0:00:09.5]} 55. Kxg3
{[%clk 0:00:17.2]} 55... Nf5+ {[%clk 0:00:09.4]} 56. Kh3 {[%clk 0:00:17.9]}
56... Kf3 {[%clk 0:00:04.8]} 57. Ng5+ {[%clk 0:00:17.4]} 57... Kf4 {[%clk
0:00:04.6]} 58. Ne6+ {[%clk 0:00:18]} 58... Ke5 {[%clk 0:00:04.9]} 59. Ng5
{[%clk 0:00:18.7]} 59... Kf6 {[%clk 0:00:05.5]} 60. Ne4+ {[%clk 0:00:19.3]}
60... Kg7 {[%clk 0:00:05.8]} 61. Kg2 {[%clk 0:00:18.2]} 61... Kh6 {[%clk
0:00:05.9]} 62. Kh3 {[%clk 0:00:17.8]} 62... g5 {[%clk 0:00:06.5]} 63. Nf2
{[%clk 0:00:17.4]} 63... Kg6 {[%clk 0:00:06.8]} 64. Kg2 {[%clk 0:00:17.2]} 64...
Ne3+ {[%clk 0:00:06.9]} 65. Kf3 {[%clk 0:00:16.1]} 65... Nc4 {[%clk 0:00:07.8]}
66. Ke4 {[%clk 0:00:13.8]} 66... Nd6+ {[%clk 0:00:08]} 67. Ke5 {[%clk
0:00:13.9]} 67... Nf7+ {[%clk 0:00:08.7]} 68. Ke4 {[%clk 0:00:10.1]} 68... Nh6
{[%clk 0:00:09.1]} 69. Nd3 {[%clk 0:00:09.3]} 69... h4 {[%clk 0:00:09.4]} 70.
Ne5+ {[%clk 0:00:08]} 70... Kh5 {[%clk 0:00:10]} 71. Nd7 {[%clk 0:00:06.9]}
71... h3 {[%clk 0:00:08.1]} 72. Kf3 {[%clk 0:00:06.1]} 72... Kh4 {[%clk
0:00:08.6]} 73. Ne5 {[%clk 0:00:04.1]} 73... g4+ {[%clk 0:00:05.9]} 74. Kf2
{[%clk 0:00:04.7]} 74... Nf5 {[%clk 0:00:05.2]} 75. Ng6+ {[%clk 0:00:01.8]}
75... Kg5 {[%clk 0:00:05.8]} 76. Ne5 {[%clk 0:00:02.7]} 76... Nd4 {[%clk
0:00:04.1]} 77. Kg3 {[%clk 0:00:02.6]} 77... Nf5+ {[%clk 0:00:03.9]} 78. Kf2
{[%clk 0:00:03.3]} 78... Kf4 {[%clk 0:00:04.3]} 79. Ng6+ {[%clk 0:00:03.6]}
79... Ke4 {[%clk 0:00:04.8]} 80. Kf1 {[%clk 0:00:01.7]} 80... g3 {[%clk
0:00:04.8]} 81. Kg1 {[%clk 0:00:01.3]} 81... Nd4 {[%clk 0:00:04.5]} 0-1

[Event "Late-Titled-Tuesday-Blitz-February-20-2024"]
[Site "Chess.com"]
[Date "2024.02.20"]
[Round "11"]
[White "alexrustemov"]
[Black "DeArron_Fox"]
[Result "1/2-1/2"]
[WhiteElo "2838"]
[BlackElo "2522"]
[TimeControl "180+1"]
[EndTime "16:06:56 PST"]
[Termination "Game drawn by repetition"]

1. d4 {[%clk 0:03:00.9]} 1... d5 {[%clk 0:02:59.8]} 2. c4 {[%clk 0:03:00.8]}
2... e6 {[%clk 0:03:00.3]} 3. Nc3 {[%clk 0:03:00.9]} 3... Nf6 {[%clk 0:03:00.8]}
4. Nf3 {[%clk 0:03:00.4]} 4... Be7 {[%clk 0:03:01.4]} 5. Bg5 {[%clk 0:02:59.4]}
5... O-O {[%clk 0:03:01.5]} 6. e3 {[%clk 0:02:59]} 6... h6 {[%clk 0:03:02.1]} 7.
Bxf6 {[%clk 0:02:58.6]} 7... Bxf6 {[%clk 0:03:03]} 8. Rc1 {[%clk 0:02:58.8]}
8... a6 {[%clk 0:02:59.8]} 9. Qc2 {[%clk 0:02:55]} 9... c5 {[%clk 0:02:39.8]}
10. dxc5 {[%clk 0:02:48.7]} 10... dxc4 {[%clk 0:02:39.8]} 11. Bxc4 {[%clk
0:02:47.9]} 11... Qa5 {[%clk 0:02:39.7]} 12. O-O {[%clk 0:02:45.8]} 12... Qxc5
{[%clk 0:02:39.7]} 13. Ne4 {[%clk 0:02:45.6]} 13... Qe7 {[%clk 0:02:40.3]} 14.
Rfd1 {[%clk 0:02:36.9]} 14... Bd7 {[%clk 0:02:02.1]} 15. Bd3 {[%clk 0:02:21.4]}
15... Bc6 {[%clk 0:01:38]} 16. Nc5 {[%clk 0:02:05]} 16... Bxf3 {[%clk
0:00:51.6]} 17. gxf3 {[%clk 0:02:05.9]} 17... Nc6 {[%clk 0:00:52.1]} 18. Be4
{[%clk 0:01:59.3]} 18... Rad8 {[%clk 0:00:25.8]} 19. Nxb7 {[%clk 0:01:57.8]}
19... Qxb7 {[%clk 0:00:20.6]} 20. Bxc6 {[%clk 0:01:52.7]} 20... Qxb2 {[%clk
0:00:20.5]} 21. Qxb2 {[%clk 0:01:49.1]} 21... Bxb2 {[%clk 0:00:21.4]} 22. Rb1
{[%clk 0:01:47.5]} 22... Rxd1+ {[%clk 0:00:13.5]} 23. Rxd1 {[%clk 0:01:46.9]}
23... a5 {[%clk 0:00:11.6]} 24. f4 {[%clk 0:01:42]} 24... Rc8 {[%clk 0:00:10.3]}
25. Rd2 {[%clk 0:01:35.6]} 25... Bc3 {[%clk 0:00:04.6]} 26. Bb7 {[%clk
0:01:25.8]} 26... Bxd2 {[%clk 0:00:03.3]} 27. Bxc8 {[%clk 0:01:25.8]} 27... Kf8
{[%clk 0:00:03.7]} 28. h4 {[%clk 0:01:23.9]} 28... Ke7 {[%clk 0:00:03.7]} 29. h5
{[%clk 0:01:22.6]} 29... Bc3 {[%clk 0:00:03.7]} 30. Kg2 {[%clk 0:01:21.9]} 30...
Kd6 {[%clk 0:00:03.5]} 31. Kf3 {[%clk 0:01:21.1]} 31... f6 {[%clk 0:00:03.9]}
32. Kg4 {[%clk 0:01:13.9]} 32... f5+ {[%clk 0:00:04]} 33. Kf3 {[%clk 0:01:12.4]}
33... Ke7 {[%clk 0:00:03.8]} 34. Ke2 {[%clk 0:01:10.9]} 34... Kf6 {[%clk
0:00:03.9]} 35. Kd3 {[%clk 0:01:08.2]} 35... Be1 {[%clk 0:00:04]} 36. f3 {[%clk
0:01:08.2]} 36... e5 {[%clk 0:00:03.2]} 37. fxe5+ {[%clk 0:00:58.8]} 37... Kxe5
{[%clk 0:00:04.1]} 38. f4+ {[%clk 0:00:52.2]} 38... Kf6 {[%clk 0:00:04.3]} 39.
Ke2 {[%clk 0:00:49.4]} 39... Bb4 {[%clk 0:00:03.8]} 40. Kf3 {[%clk 0:00:49.2]}
40... g6 {[%clk 0:00:03]} 41. hxg6 {[%clk 0:00:47.2]} 41... Kxg6 {[%clk
0:00:03.9]} 42. Bd7 {[%clk 0:00:47.2]} 42... Kf6 {[%clk 0:00:03.5]} 43. Be8
{[%clk 0:00:47.4]} 43... Bd2 {[%clk 0:00:03]} 44. a4 {[%clk 0:00:46.6]} 44...
Bb4 {[%clk 0:00:03.1]} 45. Bh5 {[%clk 0:00:46.8]} 45... Bc3 {[%clk 0:00:03.3]}
46. Ke2 {[%clk 0:00:47.1]} 46... Bb4 {[%clk 0:00:03.8]} 47. Kd3 {[%clk
0:00:47.6]} 47... Be1 {[%clk 0:00:03.5]} 48. Be2 {[%clk 0:00:47.4]} 48... Bf2
{[%clk 0:00:03.2]} 49. Bd1 {[%clk 0:00:47.4]} 49... Be1 {[%clk 0:00:03.3]} 50.
Ke2 {[%clk 0:00:47.8]} 50... Bb4 {[%clk 0:00:04.2]} 51. Kf3 {[%clk 0:00:48.5]}
51... Bc3 {[%clk 0:00:04]} 52. Bc2 {[%clk 0:00:49]} 52... Bb4 {[%clk 0:00:04.4]}
53. Kg3 {[%clk 0:00:49.4]} 53... Bd2 {[%clk 0:00:04]} 54. Kf3 {[%clk 0:00:49.6]}
54... Bb4 {[%clk 0:00:03.7]} 55. Bd3 {[%clk 0:00:50.5]} 55... Bc3 {[%clk
0:00:03.5]} 56. Bb5 {[%clk 0:00:49.9]} 56... Bb4 {[%clk 0:00:03.8]} 57. Be8
{[%clk 0:00:50.1]} 57... Bc3 {[%clk 0:00:03.8]} 58. Bd7 {[%clk 0:00:48.8]} 58...
Bb4 {[%clk 0:00:04.1]} 59. e4 {[%clk 0:00:48.9]} 59... fxe4+ {[%clk 0:00:03.9]}
60. Kxe4 {[%clk 0:00:49.8]} 60... Bc3 {[%clk 0:00:04]} 61. Be8 {[%clk
0:00:49.6]} 61... Bb4 {[%clk 0:00:04.1]} 62. Bh5 {[%clk 0:00:50.2]} 62... Bc3
{[%clk 0:00:04.1]} 63. Bd1 {[%clk 0:00:50.8]} 63... Bb4 {[%clk 0:00:05]} 64. Bc2
{[%clk 0:00:51.3]} 64... Bc3 {[%clk 0:00:05.3]} 65. Kf3 {[%clk 0:00:52]} 65...
Bb4 {[%clk 0:00:06.2]} 66. Kg4 {[%clk 0:00:52.6]} 66... Bc3 {[%clk 0:00:04.2]}
67. Kh5 {[%clk 0:00:52.7]} 67... Bd2 {[%clk 0:00:04.8]} 68. Kg4 {[%clk
0:00:51.5]} 68... h5+ {[%clk 0:00:04]} 69. Kf3 {[%clk 0:00:50.8]} 69... h4
{[%clk 0:00:03.8]} 70. Bd3 {[%clk 0:00:44.3]} 70... h3 {[%clk 0:00:03.1]} 71. f5
{[%clk 0:00:41.8]} 71... h2 {[%clk 0:00:02.8]} 72. Kg2 {[%clk 0:00:41.9]} 72...
Bf4 {[%clk 0:00:03.3]} 73. Kh1 {[%clk 0:00:41.9]} 73... Bc7 {[%clk 0:00:03.8]}
74. Bc2 {[%clk 0:00:41.4]} 74... Kg5 {[%clk 0:00:04.3]} 75. Kg2 {[%clk
0:00:41.5]} 75... Kf6 {[%clk 0:00:04.7]} 76. Kh1 {[%clk 0:00:41.7]} 76... Kg5
{[%clk 0:00:05.3]} 77. Kg2 {[%clk 0:00:42.1]} 77... Be5 {[%clk 0:00:05.9]} 78.
Bd3 {[%clk 0:00:42]} 78... Kf4 {[%clk 0:00:03.9]} 79. Kh1 {[%clk 0:00:40.5]}
79... Ke3 {[%clk 0:00:04.2]} 80. Bc2 {[%clk 0:00:40.5]} 80... Kd4 {[%clk
0:00:02.1]} 81. Bb3 {[%clk 0:00:39.7]} 81... Kc3 {[%clk 0:00:02.4]} 82. Be6
{[%clk 0:00:39.6]} 82... Kb4 {[%clk 0:00:02.8]} 83. Bd7 {[%clk 0:00:39.9]} 83...
Kc5 {[%clk 0:00:03.1]} 84. Kg2 {[%clk 0:00:39.4]} 84... Kd6 {[%clk 0:00:03.7]}
85. Bb5 {[%clk 0:00:39.2]} 85... Ke7 {[%clk 0:00:03.7]} 86. Kh1 {[%clk 0:00:39]}
86... Kf6 {[%clk 0:00:04.6]} 87. Bd3 {[%clk 0:00:39.3]} 87... Bd6 {[%clk
0:00:05.5]} 88. Kg2 {[%clk 0:00:38.6]} 88... Bc7 {[%clk 0:00:06.4]} 89. Bc2
{[%clk 0:00:37.8]} 89... Bb8 {[%clk 0:00:07.3]} 90. Kh1 {[%clk 0:00:37.6]} 90...
Bc7 {[%clk 0:00:08.2]} 91. Kg2 {[%clk 0:00:37.9]} 91... Bb8 {[%clk 0:00:09.1]}
92. Kh1 {[%clk 0:00:38]} 92... Bd6 {[%clk 0:00:09.7]} 93. Kg2 {[%clk 0:00:36.9]}
93... Bg3 {[%clk 0:00:10.3]} 94. Be4 {[%clk 0:00:35.8]} 94... Bb8 {[%clk
0:00:10.7]} 95. Bc2 {[%clk 0:00:35.3]} 95... Bc7 {[%clk 0:00:10.4]} 96. Bd3
{[%clk 0:00:35.4]} 96... Bd6 {[%clk 0:00:10.7]} 97. Be4 {[%clk 0:00:35.7]} 97...
Bc7 {[%clk 0:00:11.6]} 98. Bc2 {[%clk 0:00:35.4]} 1/2-1/2

[Event "Late-Titled-Tuesday-Blitz-February-20-2024"]
[Site "Chess.com"]
[Date "2024.02.20"]
[Round "11"]
[White "jefferyx"]
[Black "Angry_Twin"]
[Result "1-0"]
[WhiteElo "3053"]
[BlackElo "2976"]
[TimeControl "180+1"]
[EndTime "16:07:02 PST"]
[Termination "jefferyx won by checkmate"]

1. b4 {[%clk 0:02:59.5]} 1... e5 {[%clk 0:02:57]} 2. Bb2 {[%clk 0:02:59.8]} 2...
Bxb4 {[%clk 0:02:57.1]} 3. Bxe5 {[%clk 0:02:57.8]} 3... Nf6 {[%clk 0:02:57.7]}
4. e3 {[%clk 0:02:52.5]} 4... O-O {[%clk 0:02:55.6]} 5. c3 {[%clk 0:02:47.5]}
5... Be7 {[%clk 0:02:53.2]} 6. d4 {[%clk 0:02:46.5]} 6... d6 {[%clk 0:02:52.2]}
7. Bxf6 {[%clk 0:02:43.9]} 7... Bxf6 {[%clk 0:02:52.1]} 8. g3 {[%clk 0:02:44.8]}
8... d5 {[%clk 0:02:40.8]} 9. Bg2 {[%clk 0:02:44.4]} 9... c6 {[%clk 0:02:33.8]}
10. Ne2 {[%clk 0:02:44.2]} 10... Re8 {[%clk 0:02:31.7]} 11. Nd2 {[%clk
0:02:44.1]} 11... Bf5 {[%clk 0:02:26.2]} 12. O-O {[%clk 0:02:43.3]} 12... Bd3
{[%clk 0:02:08.5]} 13. Re1 {[%clk 0:02:42.9]} 13... Nd7 {[%clk 0:02:05.8]} 14.
Qb3 {[%clk 0:02:42.2]} 14... Nb6 {[%clk 0:01:59]} 15. Nf4 {[%clk 0:02:37.4]}
15... Ba6 {[%clk 0:01:58.9]} 16. Bf1 {[%clk 0:02:30.6]} 16... Bxf1 {[%clk
0:01:54.4]} 17. Kxf1 {[%clk 0:02:31.5]} 17... Rc8 {[%clk 0:01:42.6]} 18. a4
{[%clk 0:02:26.6]} 18... Rc7 {[%clk 0:01:40.7]} 19. Rac1 {[%clk 0:01:50.8]}
19... Rce7 {[%clk 0:01:20.6]} 20. Nd3 {[%clk 0:01:45.9]} 20... Nc8 {[%clk
0:01:17]} 21. c4 {[%clk 0:01:43.6]} 21... Qa5 {[%clk 0:01:01.8]} 22. Red1 {[%clk
0:01:38.7]} 22... dxc4 {[%clk 0:00:59.4]} 23. Nxc4 {[%clk 0:01:39.6]} 23... Qh5
{[%clk 0:00:59.2]} 24. Kg1 {[%clk 0:01:37.5]} 24... Qf5 {[%clk 0:00:41.3]} 25.
a5 {[%clk 0:01:35.3]} 25... h5 {[%clk 0:00:37.6]} 26. Nc5 {[%clk 0:01:27.1]}
26... h4 {[%clk 0:00:34.3]} 27. e4 {[%clk 0:01:26.9]} 27... Qh5 {[%clk
0:00:31.1]} 28. e5 {[%clk 0:01:21.6]} 28... Bg5 {[%clk 0:00:31.1]} 29. f4 {[%clk
0:01:22.2]} 29... Bh6 {[%clk 0:00:31.3]} 30. Nd2 {[%clk 0:01:12.9]} 30... b6
{[%clk 0:00:19.2]} 31. Nce4 {[%clk 0:01:09.4]} 31... Rd7 {[%clk 0:00:12.4]} 32.
Qf3 {[%clk 0:01:07]} 32... Qxf3 {[%clk 0:00:04.4]} 33. Nxf3 {[%clk 0:01:06.9]}
33... hxg3 {[%clk 0:00:05.3]} 34. hxg3 {[%clk 0:01:06.1]} 34... Ne7 {[%clk
0:00:06]} 35. axb6 {[%clk 0:01:05]} 35... axb6 {[%clk 0:00:06.1]} 36. Kf2 {[%clk
0:00:53.6]} 36... Red8 {[%clk 0:00:06.5]} 37. Rb1 {[%clk 0:00:50.1]} 37... c5
{[%clk 0:00:06.1]} 38. Rxb6 {[%clk 0:00:38.5]} 38... cxd4 {[%clk 0:00:06.6]} 39.
Rb3 {[%clk 0:00:39]} 39... Nf5 {[%clk 0:00:03.1]} 40. Rdd3 {[%clk 0:00:36.2]}
40... Ne3 {[%clk 0:00:01.5]} 41. Rb4 {[%clk 0:00:29.2]} 41... Nd5 {[%clk
0:00:01.7]} 42. Rbxd4 {[%clk 0:00:26.3]} 42... Nxf4 {[%clk 0:00:02.2]} 43. gxf4
{[%clk 0:00:22.6]} 43... Rxd4 {[%clk 0:00:02.6]} 44. Rxd4 {[%clk 0:00:11.5]}
44... Rxd4 {[%clk 0:00:02.3]} 45. Nxd4 {[%clk 0:00:12.4]} 45... Bxf4 {[%clk
0:00:02.9]} 46. Nc6 {[%clk 0:00:12.7]} 46... Kf8 {[%clk 0:00:02]} 47. Nc5 {[%clk
0:00:12.2]} 47... Bxe5 {[%clk 0:00:02.1]} 48. Nxe5 {[%clk 0:00:12.2]} 48... f5
{[%clk 0:00:02.7]} 49. Ne6+ {[%clk 0:00:10.7]} 49... Ke7 {[%clk 0:00:02.8]} 50.
Ng5 {[%clk 0:00:11.6]} 50... Kf6 {[%clk 0:00:02.7]} 51. Nef3 {[%clk 0:00:12.5]}
51... f4 {[%clk 0:00:02.3]} 52. Ke2 {[%clk 0:00:12.6]} 52... Kf5 {[%clk
0:00:02.9]} 53. Kd3 {[%clk 0:00:13.5]} 53... Kf6 {[%clk 0:00:02.2]} 54. Ke4
{[%clk 0:00:14.4]} 54... g6 {[%clk 0:00:02.6]} 55. Kxf4 {[%clk 0:00:15.3]} 55...
Ke7 {[%clk 0:00:03]} 56. Ke5 {[%clk 0:00:16.2]} 56... Kd7 {[%clk 0:00:03.4]} 57.
Nd4 {[%clk 0:00:15.8]} 57... Kc7 {[%clk 0:00:02.9]} 58. Kd5 {[%clk 0:00:15.1]}
58... Kb6 {[%clk 0:00:03.1]} 59. Kd6 {[%clk 0:00:10.6]} 59... Ka5 {[%clk
0:00:02.2]} 60. Kc5 {[%clk 0:00:10.5]} 60... Ka4 {[%clk 0:00:02.3]} 61. Kc4
{[%clk 0:00:10.6]} 61... Ka5 {[%clk 0:00:02.8]} 62. Kb3 {[%clk 0:00:09.1]} 62...
Kb6 {[%clk 0:00:02.6]} 63. Kb4 {[%clk 0:00:10]} 63... Ka6 {[%clk 0:00:02.3]} 64.
Nc6 {[%clk 0:00:07.2]} 64... Kb6 {[%clk 0:00:02.8]} 65. Ne5 {[%clk 0:00:07.7]}
65... Ka6 {[%clk 0:00:02.8]} 66. Nc4 {[%clk 0:00:08]} 66... Kb7 {[%clk
0:00:03.3]} 67. Kc5 {[%clk 0:00:08.3]} 67... Kc7 {[%clk 0:00:04]} 68. Nb6 {[%clk
0:00:08.8]} 68... Kb7 {[%clk 0:00:03.3]} 69. Nd5 {[%clk 0:00:09.2]} 69... Ka6
{[%clk 0:00:03.2]} 70. Kb4 {[%clk 0:00:09.8]} 70... Ka7 {[%clk 0:00:02.6]} 71.
Ka5 {[%clk 0:00:10]} 71... Kb7 {[%clk 0:00:01.8]} 72. Kb5 {[%clk 0:00:10.5]}
72... Ka7 {[%clk 0:00:02.4]} 73. Nc7 {[%clk 0:00:09.4]} 73... Kb7 {[%clk
0:00:02.7]} 74. Nce6 {[%clk 0:00:10]} 74... Kb8 {[%clk 0:00:01.8]} 75. Kc6
{[%clk 0:00:08]} 75... Kc8 {[%clk 0:00:02.3]} 76. Nf7 {[%clk 0:00:07.1]} 76...
g5 {[%clk 0:00:02.7]} 77. Nd6+ {[%clk 0:00:07.3]} 77... Kb8 {[%clk 0:00:03.3]}
78. Kb6 {[%clk 0:00:07.8]} 78... g4 {[%clk 0:00:02.3]} 79. Nc5 {[%clk
0:00:07.9]} 79... g3 {[%clk 0:00:01.9]} 80. Nd7+ {[%clk 0:00:07]} 80... Ka8
{[%clk 0:00:02.3]} 81. Ne8 {[%clk 0:00:07.9]} 81... g2 {[%clk 0:00:01.9]} 82.
Nc7# {[%clk 0:00:08.8]} 1-0